[Event "January 9 Early 2024"]
[Site "https://www.chess.com"]
[Date "2024.01.11"]
[Round "5"]
[White "Thake, Conrad"]
[Black "De Pablo Pena, Miguel Angel"]
[Result "1-0"]
[Board "159"]
[TimeControl "180+1"]
[WhiteFideId "5602947"]
[BlackFideId "2219123"]
[WhiteElo "1850"]
[BlackElo "2155"]
[WhiteTeam "MLT"]
[BlackTeam "ESP"]
[WhiteClock "0:00:15"]
[BlackClock "0:00:11"]

1. c4 {[%clk 0:03:00]}  Nf6 {[%clk 0:01:54]} 2. Nc3 {[%clk 0:02:59]}  d6 {[%clk 0:01:54]} 3. g3 {[%clk 0:02:56]}  g6 {[%clk 0:01:54]} 4. Bg2 {[%clk 0:02:56]}  Bg7 {[%clk 0:01:55]} 5. e4 {[%clk 0:02:55]}  O-O {[%clk 0:01:56]} 6. d4 {[%clk 0:02:36]}  Nbd7 {[%clk 0:01:56]} 7. Nge2 {[%clk 0:02:35]}  c5 {[%clk 0:01:57]} 8. O-O {[%clk 0:02:23]}  cxd4 {[%clk 0:01:56]} 9. Nxd4 {[%clk 0:02:21]}  Nc5 {[%clk 0:01:57]} 10. b4 {[%clk 0:02:08]}  Ne6 {[%clk 0:01:50]} 11. Nce2 {[%clk 0:01:35]}  Qb6 {[%clk 0:01:36]} 12. Be3 {[%clk 0:01:12]}  Qxb4 {[%clk 0:01:28]} 13. Qc2 {[%clk 0:01:01]}  Bd7 {[%clk 0:01:22]} 14. Rab1 {[%clk 0:00:58]}  Qa5 {[%clk 0:01:07]} 15. Rxb7 {[%clk 0:00:57]}  Nc5 {[%clk 0:00:57]} 16. Nb3 {[%clk 0:00:48]}  Qa4 {[%clk 0:00:44]} 17. Bxc5 {[%clk 0:00:43]}  Qa6 {[%clk 0:00:19]} 18. e5 {[%clk 0:00:42]}  dxe5 {[%clk 0:00:14]} 19. Bxe7 {[%clk 0:00:38]}  Rfe8 {[%clk 0:00:13]} 20. Bxf6 {[%clk 0:00:37]}  Qxf6 {[%clk 0:00:12]} 21. Rxd7 {[%clk 0:00:37]}  Rab8 {[%clk 0:00:11]} 22. Bd5 {[%clk 0:00:34]}  Rf8 {[%clk 0:00:11]} 23. f4 {[%clk 0:00:32]}  e4 {[%clk 0:00:09]} 24. Ned4 {[%clk 0:00:30]}  Qb6 {[%clk 0:00:08]} 25. Kh1 {[%clk 0:00:27]}  Bxd4 {[%clk 0:00:08]} 26. Nxd4 {[%clk 0:00:23]}  Qxd4 {[%clk 0:00:08]} 27. Qxe4 {[%clk 0:00:23]}  Qxe4+ {[%clk 0:00:07]} 28. Bxe4 {[%clk 0:00:23]}  Rfe8 {[%clk 0:00:08]} 29. Bd5 {[%clk 0:00:22]}  Rf8 {[%clk 0:00:09]} 30. Re1 {[%clk 0:00:21]}  Rb2 {[%clk 0:00:09]} 31. Ree7 {[%clk 0:00:19]}  Rb1+ {[%clk 0:00:09]} 32. Kg2 {[%clk 0:00:19]}  Rb2+ {[%clk 0:00:10]} 33. Kh3 {[%clk 0:00:19]}  h6 {[%clk 0:00:10]} 34. Rxf7 {[%clk 0:00:19]}  Rxf7 {[%clk 0:00:11]} 35. Rxf7 {[%clk 0:00:19]}  Kh8 {[%clk 0:00:11]} 36. Rxa7 {[%clk 0:00:18]}  Rb6 {[%clk 0:00:10]} 37. a4 {[%clk 0:00:18]}  Rd6 {[%clk 0:00:10]} 38. a5 {[%clk 0:00:18]}  Rd8 {[%clk 0:00:11]} 39. a6 {[%clk 0:00:17]}  Rb8 {[%clk 0:00:12]} 40. Rb7 {[%clk 0:00:17]}  Rc8 {[%clk 0:00:10]} 41. a7 {[%clk 0:00:17]}  g5 {[%clk 0:00:11]} 42. Rb8 {[%clk 0:00:17]}  g4+ {[%clk 0:00:11]} 43. Kxg4 {[%clk 0:00:15]} 1-0

[Event "January 9 Early 2024"]
[Site "https://www.chess.com"]
[Date "2024.01.11"]
[Round "5"]
[White "Durarbayli, Vasif"]
[Black "Yurasov, Matfey"]
[Result "1-0"]
[Board "161"]
[TimeControl "180+1"]
[WhiteFideId "13402935"]
[BlackFideId "55617603"]
[WhiteElo "2803"]
[BlackElo "2554"]
[WhiteTeam "AZE"]
[BlackTeam "FID"]
[WhiteClock "0:00:17"]
[BlackClock "0:00:39"]

1. e4 {[%clk 0:03:00]}  e5 {[%clk 0:02:59]} 2. Nc3 {[%clk 0:03:00]}  Nf6 {[%clk 0:02:58]} 3. d4 {[%clk 0:03:00]}  exd4 {[%clk 0:02:56]} 4. Qxd4 {[%clk 0:03:01]}  Nc6 {[%clk 0:02:56]} 5. Qd3 {[%clk 0:03:01]}  Bb4 {[%clk 0:02:55]} 6. Bd2 {[%clk 0:03:01]}  O-O {[%clk 0:02:52]} 7. O-O-O {[%clk 0:03:02]}  Re8 {[%clk 0:02:52]} 8. Nge2 {[%clk 0:03:02]}  d6 {[%clk 0:02:47]} 9. Bg5 {[%clk 0:03:01]}  h6 {[%clk 0:02:46]} 10. Bxf6 {[%clk 0:03:02]}  Qxf6 {[%clk 0:02:42]} 11. Nd5 {[%clk 0:03:02]}  Qd8 {[%clk 0:02:39]} 12. Nxb4 {[%clk 0:03:03]}  Nxb4 {[%clk 0:02:39]} 13. Qd2 {[%clk 0:03:04]}  Nc6 {[%clk 0:02:37]} 14. f3 {[%clk 0:03:04]}  Be6 {[%clk 0:02:36]} 15. Kb1 {[%clk 0:03:03]}  a6 {[%clk 0:02:36]} 16. h4 {[%clk 0:03:00]}  Qf6 {[%clk 0:02:34]} 17. Nf4 {[%clk 0:02:55]}  Rad8 {[%clk 0:02:32]} 18. g4 {[%clk 0:02:51]}  Ne5 {[%clk 0:02:27]} 19. g5 {[%clk 0:02:37]}  hxg5 {[%clk 0:02:25]} 20. hxg5 {[%clk 0:02:37]}  Qxg5 {[%clk 0:02:22]} 21. Qh2 {[%clk 0:02:38]}  Qh6 {[%clk 0:02:09]} 22. Nh5 {[%clk 0:02:06]}  Nxf3 {[%clk 0:02:04]} 23. Nf6+ {[%clk 0:02:06]}  Kf8 {[%clk 0:01:59]} 24. Qxh6 {[%clk 0:02:00]}  gxh6 {[%clk 0:01:59]} 25. Nxe8 {[%clk 0:02:01]}  Rxe8 {[%clk 0:01:59]} 26. Rxh6 {[%clk 0:02:01]}  Ke7 {[%clk 0:01:59]} 27. Be2 {[%clk 0:01:56]}  Ng5 {[%clk 0:01:53]} 28. Rh4 {[%clk 0:01:49]}  Rg8 {[%clk 0:01:47]} 29. Rg1 {[%clk 0:01:47]}  Rg7 {[%clk 0:01:46]} 30. Kc1 {[%clk 0:01:41]}  Rg8 {[%clk 0:01:40]} 31. a3 {[%clk 0:01:41]}  Rg7 {[%clk 0:01:34]} 32. Rg3 {[%clk 0:01:37]}  Rg8 {[%clk 0:01:29]} 33. Rh5 {[%clk 0:01:29]}  f6 {[%clk 0:01:28]} 34. Rh4 {[%clk 0:01:23]}  c5 {[%clk 0:01:20]} 35. Rg1 {[%clk 0:00:56]}  b5 {[%clk 0:01:17]} 36. Rf1 {[%clk 0:00:38]}  Rf8 {[%clk 0:01:09]} 37. Bg4 {[%clk 0:00:36]}  Bc4 {[%clk 0:01:07]} 38. Re1 {[%clk 0:00:33]}  Rg8 {[%clk 0:01:06]} 39. b3 {[%clk 0:00:33]}  Be6 {[%clk 0:01:04]} 40. Bxe6 {[%clk 0:00:28]}  Kxe6 {[%clk 0:01:05]} 41. Rf1 {[%clk 0:00:28]}  Rg7 {[%clk 0:01:02]} 42. Kd2 {[%clk 0:00:27]}  a5 {[%clk 0:00:57]} 43. Ke3 {[%clk 0:00:26]}  Nf7 {[%clk 0:00:56]} 44. Rhf4 {[%clk 0:00:18]}  Rg6 {[%clk 0:00:56]} 45. Rh1 {[%clk 0:00:19]}  Ne5 {[%clk 0:00:55]} 46. Kf2 {[%clk 0:00:19]}  Rg7 {[%clk 0:00:54]} 47. Rh8 {[%clk 0:00:18]}  Ng4+ {[%clk 0:00:51]} 48. Ke2 {[%clk 0:00:18]}  Ne5 {[%clk 0:00:51]} 49. Re8+ {[%clk 0:00:18]}  Kd7 {[%clk 0:00:49]} 50. Ra8 {[%clk 0:00:17]}  Rg2+ {[%clk 0:00:49]} 51. Rf2 {[%clk 0:00:17]}  Rg4 {[%clk 0:00:48]} 52. Rxf6 {[%clk 0:00:16]}  Rxe4+ {[%clk 0:00:48]} 53. Kd2 {[%clk 0:00:17]}  a4 {[%clk 0:00:44]} 54. Ra7+ {[%clk 0:00:17]}  Kc8 {[%clk 0:00:39]} 55. Rf8# {[%clk 0:00:17]} 1-0

[Event "January 9 Early 2024"]
[Site "https://www.chess.com"]
[Date "2024.01.11"]
[Round "5"]
[White "Joubert, Dantelle"]
[Black "Clawitter, Craig"]
[Result "0-1"]
[Board "163"]
[TimeControl "180+1"]
[WhiteFideId "14310813"]
[BlackFideId "2023105"]
[WhiteElo "2050"]
[BlackElo "2243"]
[WhiteTeam "RSA"]
[BlackTeam "USA"]
[WhiteClock "0:00:03"]
[BlackClock "0:00:02"]

1. d4 {[%clk 0:02:56]}  e6 {[%clk 0:02:59]} 2. c4 {[%clk 0:02:49]}  Nf6 {[%clk 0:02:58]} 3. Nf3 {[%clk 0:02:47]}  d5 {[%clk 0:02:58]} 4. Nc3 {[%clk 0:02:46]}  dxc4 {[%clk 0:02:58]} 5. e3 {[%clk 0:02:38]}  c5 {[%clk 0:02:57]} 6. Bxc4 {[%clk 0:02:34]}  Nc6 {[%clk 0:02:53]} 7. O-O {[%clk 0:02:28]}  cxd4 {[%clk 0:02:53]} 8. exd4 {[%clk 0:02:27]}  Be7 {[%clk 0:02:54]} 9. Bg5 {[%clk 0:02:21]}  O-O {[%clk 0:02:53]} 10. Re1 {[%clk 0:02:19]}  b6 {[%clk 0:02:53]} 11. Qd2 {[%clk 0:01:42]}  Bb7 {[%clk 0:02:51]} 12. Rad1 {[%clk 0:01:39]}  Na5 {[%clk 0:02:42]} 13. Be2 {[%clk 0:01:28]}  Rc8 {[%clk 0:02:20]} 14. Ne5 {[%clk 0:01:20]}  Nd5 {[%clk 0:01:58]} 15. Bxe7 {[%clk 0:01:09]}  Qxe7 {[%clk 0:01:53]} 16. Bf3 {[%clk 0:01:00]}  Nxc3 {[%clk 0:01:52]} 17. Bxb7 {[%clk 0:00:54]}  Nxd1 {[%clk 0:00:53]} 18. Bxc8 {[%clk 0:00:52]}  Rxc8 {[%clk 0:00:19]} 19. Rxd1 {[%clk 0:00:47]}  f6 {[%clk 0:00:19]} 20. Nf3 {[%clk 0:00:46]}  Nc4 {[%clk 0:00:19]} 21. Qe2 {[%clk 0:00:41]}  Rc6 {[%clk 0:00:15]} 22. d5 {[%clk 0:00:38]}  Rc5 {[%clk 0:00:10]} 23. dxe6 {[%clk 0:00:36]}  b5 {[%clk 0:00:07]} 24. h4 {[%clk 0:00:33]}  a6 {[%clk 0:00:06]} 25. Rd7 {[%clk 0:00:33]}  Qe8 {[%clk 0:00:06]} 26. b3 {[%clk 0:00:27]}  Ne5 {[%clk 0:00:06]} 27. Nd4 {[%clk 0:00:26]}  Nxd7 {[%clk 0:00:05]} 28. exd7 {[%clk 0:00:24]}  Qxd7 {[%clk 0:00:06]} 29. g4 {[%clk 0:00:17]}  Re5 {[%clk 0:00:01]} 30. Qd3 {[%clk 0:00:03]}  Rd5 {[%clk 0:00:02]} 0-1

[Event "January 9 Early 2024"]
[Site "https://www.chess.com"]
[Date "2024.01.11"]
[Round "5"]
[White "Leschinsky, Gary"]
[Black "Pinheiro, Iung Alicio de O."]
[Result "0-1"]
[Board "164"]
[TimeControl "180+1"]
[WhiteFideId "30951321"]
[BlackFideId "2104350"]
[WhiteElo "2424"]
[BlackElo "2597"]
[WhiteTeam "USA"]
[BlackTeam "BRA"]
[WhiteClock "0:00:05"]
[BlackClock "0:00:12"]

1. d4 {[%clk 0:01:32]}  Nf6 {[%clk 0:02:57]} 2. c4 {[%clk 0:01:30]}  e6 {[%clk 0:02:57]} 3. Nc3 {[%clk 0:01:29]}  Bb4 {[%clk 0:02:57]} 4. Qc2 {[%clk 0:01:27]}  Nc6 {[%clk 0:02:55]} 5. e3 {[%clk 0:01:18]}  d6 {[%clk 0:02:38]} 6. Nf3 {[%clk 0:01:16]}  e5 {[%clk 0:02:38]} 7. a3 {[%clk 0:01:15]}  Bxc3+ {[%clk 0:02:29]} 8. Qxc3 {[%clk 0:01:16]}  Qe7 {[%clk 0:02:21]} 9. Be2 {[%clk 0:01:15]}  a5 {[%clk 0:02:20]} 10. O-O {[%clk 0:01:15]}  a4 {[%clk 0:02:14]} 11. b4 {[%clk 0:01:01]}  axb3 {[%clk 0:02:12]} 12. dxe5 {[%clk 0:01:00]}  dxe5 {[%clk 0:02:09]} 13. Bb2 {[%clk 0:00:58]}  Ne4 {[%clk 0:02:01]} 14. Qxb3 {[%clk 0:00:55]}  Nc5 {[%clk 0:02:01]} 15. Qc3 {[%clk 0:00:55]}  Na4 {[%clk 0:01:56]} 16. Qc2 {[%clk 0:00:52]}  Nxb2 {[%clk 0:01:55]} 17. Qxb2 {[%clk 0:00:45]}  O-O {[%clk 0:01:55]} 18. Nd2 {[%clk 0:00:40]}  e4 {[%clk 0:01:46]} 19. Nb3 {[%clk 0:00:32]}  Ne5 {[%clk 0:01:34]} 20. c5 {[%clk 0:00:26]}  Bg4 {[%clk 0:01:03]} 21. Bxg4 {[%clk 0:00:19]}  Nxg4 {[%clk 0:01:03]} 22. Nd4 {[%clk 0:00:20]}  Qe5 {[%clk 0:00:54]} 23. g3 {[%clk 0:00:18]}  Qh5 {[%clk 0:00:54]} 24. h4 {[%clk 0:00:16]}  Rab8 {[%clk 0:00:38]} 25. Qc2 {[%clk 0:00:15]}  Rfe8 {[%clk 0:00:36]} 26. c6 {[%clk 0:00:14]}  b6 {[%clk 0:00:34]} 27. Ne2 {[%clk 0:00:11]}  Ne5 {[%clk 0:00:33]} 28. Nf4 {[%clk 0:00:11]}  Qg4 {[%clk 0:00:31]} 29. Qe2 {[%clk 0:00:10]}  Nf3+ {[%clk 0:00:31]} 30. Kh1 {[%clk 0:00:11]}  h6 {[%clk 0:00:26]} 31. h5 {[%clk 0:00:11]}  Re5 {[%clk 0:00:23]} 32. Kg2 {[%clk 0:00:09]}  Rxh5 {[%clk 0:00:20]} 33. Rh1 {[%clk 0:00:10]}  Rxh1 {[%clk 0:00:16]} 34. Rxh1 {[%clk 0:00:11]}  Rd8 {[%clk 0:00:16]} 35. Qc4 {[%clk 0:00:05]}  Rd2 {[%clk 0:00:14]} 36. Qxe4 {[%clk 0:00:05]}  Ng5 {[%clk 0:00:12]} 37. Qe8+ {[%clk 0:00:05]}  Kh7 {[%clk 0:00:12]} 38. Qe7 {[%clk 0:00:05]}  Qf3+ {[%clk 0:00:12]} 0-1

[Event "January 9 Early 2024"]
[Site "https://www.chess.com"]
[Date "2024.01.11"]
[Round "5"]
[White "Mihajlovskij, Sergei"]
[Black "Gurevich, Dmitry"]
[Result "0-1"]
[Board "166"]
[TimeControl "180+1"]
[WhiteFideId "13500805"]
[BlackFideId "2000407"]
[WhiteElo "2220"]
[BlackElo "2532"]
[WhiteTeam "BLR"]
[BlackTeam "USA"]
[WhiteClock "0:00:38"]
[BlackClock "0:00:08"]

1. e4 {[%clk 0:03:00]}  c5 {[%clk 0:02:59]} 2. Nf3 {[%clk 0:03:01]}  d6 {[%clk 0:02:59]} 3. d4 {[%clk 0:03:01]}  cxd4 {[%clk 0:02:59]} 4. Qxd4 {[%clk 0:03:02]}  a6 {[%clk 0:02:57]} 5. Bc4 {[%clk 0:03:02]}  e6 {[%clk 0:02:55]} 6. Nc3 {[%clk 0:03:01]}  Nf6 {[%clk 0:02:54]} 7. Qd3 {[%clk 0:03:00]}  Nc6 {[%clk 0:02:48]} 8. Bf4 {[%clk 0:02:59]}  b5 {[%clk 0:02:22]} 9. Bb3 {[%clk 0:02:56]}  b4 {[%clk 0:02:04]} 10. Ne2 {[%clk 0:02:55]}  a5 {[%clk 0:01:49]} 11. O-O-O {[%clk 0:02:55]}  Ba6 {[%clk 0:01:47]} 12. Bc4 {[%clk 0:02:55]}  Bxc4 {[%clk 0:01:41]} 13. Qxc4 {[%clk 0:02:56]}  Qc7 {[%clk 0:01:38]} 14. e5 {[%clk 0:02:53]}  Nd5 {[%clk 0:01:22]} 15. exd6 {[%clk 0:02:49]}  Bxd6 {[%clk 0:01:20]} 16. Bxd6 {[%clk 0:02:29]}  Qxd6 {[%clk 0:01:19]} 17. Ned4 {[%clk 0:02:23]}  Nxd4 {[%clk 0:01:16]} 18. Qxd4 {[%clk 0:02:24]}  O-O {[%clk 0:01:13]} 19. Kb1 {[%clk 0:02:21]}  a4 {[%clk 0:01:09]} 20. Qe5 {[%clk 0:02:20]}  Qxe5 {[%clk 0:01:05]} 21. Nxe5 {[%clk 0:02:21]}  a3 {[%clk 0:01:05]} 22. Rxd5 {[%clk 0:02:12]}  exd5 {[%clk 0:01:04]} 23. b3 {[%clk 0:02:13]}  Rfe8 {[%clk 0:01:02]} 24. Nd3 {[%clk 0:02:13]}  Re2 {[%clk 0:00:58]} 25. Rf1 {[%clk 0:02:09]}  Rb8 {[%clk 0:00:50]} 26. Kc1 {[%clk 0:02:09]}  f6 {[%clk 0:00:48]} 27. Kd1 {[%clk 0:02:09]}  Re4 {[%clk 0:00:48]} 28. f3 {[%clk 0:02:06]}  Re7 {[%clk 0:00:45]} 29. Re1 {[%clk 0:01:52]}  Kf7 {[%clk 0:00:43]} 30. Nf4 {[%clk 0:01:46]}  Rxe1+ {[%clk 0:00:40]} 31. Kxe1 {[%clk 0:01:47]}  Rb5 {[%clk 0:00:36]} 32. Kd2 {[%clk 0:01:47]}  g5 {[%clk 0:00:36]} 33. Ne2 {[%clk 0:01:44]}  Ke7 {[%clk 0:00:31]} 34. Kd3 {[%clk 0:01:44]}  Kd6 {[%clk 0:00:31]} 35. Nd4 {[%clk 0:01:44]}  Rb8 {[%clk 0:00:29]} 36. g3 {[%clk 0:01:30]}  h5 {[%clk 0:00:27]} 37. Kd2 {[%clk 0:01:24]}  h4 {[%clk 0:00:24]} 38. Ne2 {[%clk 0:01:24]}  h3 {[%clk 0:00:22]} 39. Nc1 {[%clk 0:01:19]}  Re8 {[%clk 0:00:17]} 40. Nd3 {[%clk 0:01:19]}  Rb8 {[%clk 0:00:17]} 41. Ke3 {[%clk 0:01:18]}  f5 {[%clk 0:00:16]} 42. Kd2 {[%clk 0:01:13]}  d4 {[%clk 0:00:13]} 43. Ke2 {[%clk 0:01:11]}  Kd5 {[%clk 0:00:13]} 44. Kd2 {[%clk 0:01:10]}  g4 {[%clk 0:00:12]} 45. fxg4 {[%clk 0:01:02]}  fxg4 {[%clk 0:00:11]} 46. Nf2 {[%clk 0:01:03]}  Rg8 {[%clk 0:00:09]} 47. Nd3 {[%clk 0:01:03]}  Ke4 {[%clk 0:00:08]} 48. Nxb4 {[%clk 0:01:00]}  Kf3 {[%clk 0:00:09]} 49. Nc6 {[%clk 0:00:40]}  Kg2 {[%clk 0:00:08]} 50. Nxd4 {[%clk 0:00:40]}  Kxh2 {[%clk 0:00:08]} 51. Ne2 {[%clk 0:00:38]}  Kg2 {[%clk 0:00:08]} 0-1

[Event "January 9 Early 2024"]
[Site "https://www.chess.com"]
[Date "2024.01.11"]
[Round "5"]
[White "Morales Garcia, Sergio Joshafatt"]
[Black "Feuerstack, Aljoscha"]
[Result "1-0"]
[Board "167"]
[TimeControl "180+1"]
[WhiteFideId "5106249"]
[BlackFideId "4681932"]
[WhiteElo "2455"]
[BlackElo "2607"]
[WhiteTeam "MEX"]
[BlackTeam "GER"]
[WhiteClock "0:00:06"]
[BlackClock "0:00:10"]

1. d4 {[%clk 0:03:00]}  d5 {[%clk 0:02:59]} 2. c4 {[%clk 0:03:01]}  c6 {[%clk 0:02:59]} 3. Nf3 {[%clk 0:03:01]}  Nf6 {[%clk 0:03:00]} 4. Nc3 {[%clk 0:03:02]}  g6 {[%clk 0:03:00]} 5. cxd5 {[%clk 0:03:01]}  cxd5 {[%clk 0:03:01]} 6. Bf4 {[%clk 0:03:01]}  Bg7 {[%clk 0:03:00]} 7. e3 {[%clk 0:03:01]}  O-O {[%clk 0:03:00]} 8. h3 {[%clk 0:03:00]}  Nc6 {[%clk 0:02:59]} 9. Be2 {[%clk 0:03:00]}  b6 {[%clk 0:02:57]} 10. O-O {[%clk 0:02:56]}  Bb7 {[%clk 0:02:57]} 11. Rc1 {[%clk 0:02:56]}  Rc8 {[%clk 0:02:56]} 12. Qa4 {[%clk 0:02:55]}  Na5 {[%clk 0:02:46]} 13. Nd2 {[%clk 0:02:51]}  Bc6 {[%clk 0:02:36]} 14. Bb5 {[%clk 0:02:48]}  Qd7 {[%clk 0:02:23]} 15. Bxc6 {[%clk 0:02:39]}  Rxc6 {[%clk 0:02:15]} 16. b4 {[%clk 0:02:15]}  Rfc8 {[%clk 0:01:50]} 17. bxa5 {[%clk 0:01:38]}  Rxc3 {[%clk 0:01:49]} 18. Qxd7 {[%clk 0:01:39]}  Nxd7 {[%clk 0:01:49]} 19. Rxc3 {[%clk 0:01:32]}  Rxc3 {[%clk 0:01:50]} 20. Nb3 {[%clk 0:01:19]}  Rc2 {[%clk 0:01:30]} 21. axb6 {[%clk 0:01:04]}  Nxb6 {[%clk 0:01:29]} 22. Rc1 {[%clk 0:00:52]}  Rxa2 {[%clk 0:01:24]} 23. Rc7 {[%clk 0:00:52]}  Bf8 {[%clk 0:00:55]} 24. Rb7 {[%clk 0:00:52]}  f6 {[%clk 0:00:54]} 25. Bb8 {[%clk 0:00:36]}  Nc8 {[%clk 0:00:16]} 26. Rc7 {[%clk 0:00:36]}  Nd6 {[%clk 0:00:16]} 27. Nc5 {[%clk 0:00:29]}  a5 {[%clk 0:00:14]} 28. Ra7 {[%clk 0:00:23]}  Ne4 {[%clk 0:00:13]} 29. Bc7 {[%clk 0:00:10]}  Nxc5 {[%clk 0:00:13]} 30. dxc5 {[%clk 0:00:10]}  a4 {[%clk 0:00:14]} 31. Bb6 {[%clk 0:00:06]}  Kf7 {[%clk 0:00:13]} 32. c6 {[%clk 0:00:06]}  Rc2 {[%clk 0:00:13]} 33. c7 {[%clk 0:00:06]}  Ke6 {[%clk 0:00:12]} 34. Rxa4 {[%clk 0:00:05]}  Kd7 {[%clk 0:00:11]} 35. Ra8 {[%clk 0:00:05]}  Bh6 {[%clk 0:00:12]} 36. Rd8+ {[%clk 0:00:05]}  Ke6 {[%clk 0:00:12]} 37. c8=Q+ {[%clk 0:00:06]}  Rxc8 {[%clk 0:00:10]} 38. Rxc8 {[%clk 0:00:06]}  Kf5 {[%clk 0:00:10]} 39. Rh8 {[%clk 0:00:06]}  Bg7 {[%clk 0:00:10]} 40. Rxh7 {[%clk 0:00:06]} 1-0

[Event "January 9 Early 2024"]
[Site "https://www.chess.com"]
[Date "2024.01.11"]
[Round "5"]
[White "Zhuk, Valeriy"]
[Black "Nouali, Mohamed"]
[Result "1-0"]
[Board "168"]
[TimeControl "180+1"]
[WhiteFideId "24151254"]
[BlackFideId "5502462"]
[WhiteElo "2406"]
[BlackElo "2572"]
[WhiteTeam "RUS"]
[BlackTeam "TUN"]
[WhiteClock "0:00:21"]
[BlackClock "0:00:07"]

1. e4 {[%clk 0:02:59]}  c5 {[%clk 0:02:59]} 2. Nf3 {[%clk 0:02:58]}  Nc6 {[%clk 0:02:59]} 3. d4 {[%clk 0:02:59]}  cxd4 {[%clk 0:02:59]} 4. Nxd4 {[%clk 0:03:00]}  g6 {[%clk 0:02:59]} 5. Be2 {[%clk 0:02:59]}  Bg7 {[%clk 0:02:59]} 6. Nb3 {[%clk 0:02:58]}  a5 {[%clk 0:02:58]} 7. a4 {[%clk 0:02:53]}  Nf6 {[%clk 0:02:58]} 8. Nc3 {[%clk 0:02:52]}  O-O {[%clk 0:02:56]} 9. O-O {[%clk 0:02:52]}  d6 {[%clk 0:02:54]} 10. Bg5 {[%clk 0:02:52]}  Be6 {[%clk 0:02:54]} 11. Bf3 {[%clk 0:02:44]}  Rc8 {[%clk 0:02:53]} 12. Re1 {[%clk 0:02:42]}  Ne5 {[%clk 0:02:39]} 13. Be2 {[%clk 0:01:50]}  Rxc3 {[%clk 0:02:32]} 14. bxc3 {[%clk 0:01:49]}  Nxe4 {[%clk 0:02:32]} 15. Bd2 {[%clk 0:01:48]}  Qc7 {[%clk 0:02:28]} 16. Nd4 {[%clk 0:01:02]}  Nxc3 {[%clk 0:02:26]} 17. Bxc3 {[%clk 0:01:01]}  Qxc3 {[%clk 0:02:27]} 18. Nxe6 {[%clk 0:01:01]}  fxe6 {[%clk 0:02:27]} 19. Rb1 {[%clk 0:00:59]}  Nc6 {[%clk 0:02:09]} 20. Bg4 {[%clk 0:00:54]}  Bd4 {[%clk 0:01:54]} 21. Bxe6+ {[%clk 0:00:51]}  Kh8 {[%clk 0:01:54]} 22. Rf1 {[%clk 0:00:43]}  b6 {[%clk 0:01:27]} 23. Rb3 {[%clk 0:00:43]}  Qc5 {[%clk 0:01:26]} 24. Rf3 {[%clk 0:00:42]}  Rf6 {[%clk 0:01:17]} 25. Rxf6 {[%clk 0:00:42]}  exf6 {[%clk 0:01:14]} 26. Bb3 {[%clk 0:00:39]}  Kg7 {[%clk 0:01:14]} 27. Qe2 {[%clk 0:00:38]}  Be5 {[%clk 0:01:08]} 28. g3 {[%clk 0:00:35]}  Nd4 {[%clk 0:01:08]} 29. Qd3 {[%clk 0:00:35]}  g5 {[%clk 0:01:03]} 30. h3 {[%clk 0:00:28]}  h5 {[%clk 0:01:03]} 31. Kg2 {[%clk 0:00:25]}  g4 {[%clk 0:01:02]} 32. hxg4 {[%clk 0:00:26]}  hxg4 {[%clk 0:01:02]} 33. Qe4 {[%clk 0:00:26]}  f5 {[%clk 0:00:57]} 34. Qb7+ {[%clk 0:00:26]}  Kh6 {[%clk 0:00:41]} 35. Rh1+ {[%clk 0:00:26]}  Kg5 {[%clk 0:00:42]} 36. Qf7 {[%clk 0:00:22]}  Qc6+ {[%clk 0:00:07]} 37. Bd5 {[%clk 0:00:21]} 1-0

[Event "January 9 Early 2024"]
[Site "https://www.chess.com"]
[Date "2024.01.11"]
[Round "5"]
[White "Erigaisi Arjun"]
[Black "Kozak, Antoni"]
[Result "1-0"]
[Board "169"]
[TimeControl "180+1"]
[WhiteFideId "35009192"]
[BlackFideId "21832030"]
[WhiteElo "3022"]
[BlackElo "2756"]
[WhiteTeam "IND"]
[BlackTeam "POL"]
[WhiteClock "0:01:01"]
[BlackClock "0:00:04"]

1. c4 {[%clk 0:03:00]}  e6 {[%clk 0:02:56]} 2. Nf3 {[%clk 0:03:00]}  d5 {[%clk 0:02:57]} 3. e3 {[%clk 0:03:00]}  Nf6 {[%clk 0:02:55]} 4. b3 {[%clk 0:03:01]}  Nbd7 {[%clk 0:02:55]} 5. Bb2 {[%clk 0:03:01]}  Bd6 {[%clk 0:02:54]} 6. Nc3 {[%clk 0:03:01]}  a6 {[%clk 0:02:53]} 7. d4 {[%clk 0:02:58]}  O-O {[%clk 0:02:47]} 8. c5 {[%clk 0:02:58]}  Be7 {[%clk 0:02:47]} 9. Qc2 {[%clk 0:02:59]}  b6 {[%clk 0:02:41]} 10. c6 {[%clk 0:02:58]}  Nb8 {[%clk 0:02:40]} 11. Ne5 {[%clk 0:02:58]}  Qd6 {[%clk 0:02:31]} 12. Nb1 {[%clk 0:02:43]}  Ne4 {[%clk 0:02:29]} 13. f3 {[%clk 0:02:34]}  Nf6 {[%clk 0:02:16]} 14. Bd3 {[%clk 0:02:29]}  a5 {[%clk 0:02:06]} 15. O-O {[%clk 0:02:26]}  Ba6 {[%clk 0:02:07]} 16. Rc1 {[%clk 0:02:21]}  Bxd3 {[%clk 0:02:06]} 17. Qxd3 {[%clk 0:02:22]}  Na6 {[%clk 0:02:06]} 18. a3 {[%clk 0:02:22]}  Qd8 {[%clk 0:01:58]} 19. Nc3 {[%clk 0:02:20]}  Nb8 {[%clk 0:01:55]} 20. Nb5 {[%clk 0:02:19]}  Ne8 {[%clk 0:01:55]} 21. e4 {[%clk 0:02:11]}  Bg5 {[%clk 0:01:47]} 22. Rc2 {[%clk 0:02:06]}  Nd6 {[%clk 0:01:43]} 23. Nc3 {[%clk 0:01:46]}  dxe4 {[%clk 0:01:32]} 24. fxe4 {[%clk 0:01:46]}  f6 {[%clk 0:01:27]} 25. Nf3 {[%clk 0:01:45]}  Nxc6 {[%clk 0:01:28]} 26. d5 {[%clk 0:01:38]}  Ne5 {[%clk 0:01:22]} 27. Nxe5 {[%clk 0:01:38]}  fxe5 {[%clk 0:01:22]} 28. dxe6 {[%clk 0:01:39]}  Qe8 {[%clk 0:00:47]} 29. Nd5 {[%clk 0:01:37]}  Rd8 {[%clk 0:00:47]} 30. Nxc7 {[%clk 0:01:25]}  Qh5 {[%clk 0:00:46]} 31. Nd5 {[%clk 0:01:20]}  Qh4 {[%clk 0:00:31]} 32. g3 {[%clk 0:01:13]}  Qg4 {[%clk 0:00:14]} 33. e7 {[%clk 0:01:11]}  Bxe7 {[%clk 0:00:15]} 34. Nxe7+ {[%clk 0:01:12]}  Kh8 {[%clk 0:00:16]} 35. Qe2 {[%clk 0:01:10]}  Qh3 {[%clk 0:00:11]} 36. Nc6 {[%clk 0:01:04]}  Rc8 {[%clk 0:00:09]} 37. Nxe5 {[%clk 0:01:01]}  Rce8 {[%clk 0:00:03]} 38. Rf1 {[%clk 0:01:00]}  Rxf1+ {[%clk 0:00:01]} 39. Qxf1 {[%clk 0:01:01]}  Qe6 {[%clk 0:00:01]} 40. Qf3 {[%clk 0:00:57]}  Kg8 {[%clk 0:00:01]} 41. Rf2 {[%clk 0:00:57]}  h6 {[%clk 0:00:01]} 42. Nc4 {[%clk 0:00:57]}  Nxc4 {[%clk 0:00:01]} 43. bxc4 {[%clk 0:00:58]}  Qxc4 {[%clk 0:00:02]} 44. e5 {[%clk 0:00:58]}  Qe6 {[%clk 0:00:02]} 45. Rd2 {[%clk 0:00:58]}  Rc8 {[%clk 0:00:03]} 46. Qd5 {[%clk 0:00:58]}  Qxd5 {[%clk 0:00:02]} 47. Rxd5 {[%clk 0:00:58]}  Rc2 {[%clk 0:00:03]} 48. Rb5 {[%clk 0:00:59]}  Kf7 {[%clk 0:00:03]} 49. Rxb6 {[%clk 0:00:59]}  a4 {[%clk 0:00:04]} 50. e6+ {[%clk 0:00:59]}  Ke7 {[%clk 0:00:04]} 51. Bxg7 {[%clk 0:01:00]}  Ra2 {[%clk 0:00:05]} 52. Bxh6 {[%clk 0:00:59]}  Rxa3 {[%clk 0:00:05]} 53. Bg5+ {[%clk 0:00:59]}  Kf8 {[%clk 0:00:04]} 54. e7+ {[%clk 0:01:00]}  Kf7 {[%clk 0:00:03]} 55. Rf6+ {[%clk 0:01:00]}  Kxe7 {[%clk 0:00:04]} 56. Rf3+ {[%clk 0:01:01]} 1-0